Cogmind - Beta 9.6 @@@ ROGUE MODE // 2020.04.19 @ 22:16:49 Player: Omewes Result: Self-destructed Performance ------------- Evolutions (2) 1000 Regions Visited (5) 1000 Robots Destroyed (25) 125 Value Destroyed (499) 499 Prototype IDs (0) 0 Alien Tech Used (0) 0 Bonus (28) 28 TOTAL SCORE: 2652 Bonus ------- Follower Combat Kills 28 Cogmind --------- Core Integrity 465/550 Matter 230/300 Energy 103/160 System Corruption 0% Temperature Cool (266) Movement Treading (200) Ox2 Location -8/Materials Parts ------- > --- POWER (1) -------- Light Nuclear Core > --- PROPULSION (2) --- Light Treads Light Treads > --- UTILITY (6) ------ Humpback Structural Scanner Advanced Visual Processing Unit Improved Targeting Computer > --- WEAPON (2) ------- Medium Laser > --- INVENTORY (24) --- Humpback Medium Laser Peak State ------------ > --- POWER ------------ Light Nuclear Core > --- PROPULSION ------- Light Treads Light Treads > --- UTILITY ---------- Humpback Structural Scanner Advanced Visual Processing Unit Improved Targeting Computer > --- WEAPON ----------- Medium Laser Pulse Rifle > --- INVENTORY -------- Humpback Medium Laser [Rating: 17] Favorites ----------- Power Ion Engine Engine Ion Engine Power Core Light Nuclear Core Propulsion Light Treads Treads Light Treads Leg Flexi-carbon Leg Wheel Wheel Utility Large Storage Unit Device Heat Sink Storage Large Storage Unit Processor Targeting Computer Weapon EM Pulse Gun Energy Gun EM Pulse Gun Ballistic Gun Light Assault Rifle Ballistic Cannon Light Cannon Build | -11 -10 -10 -10 -9 -8 ------- Run | Scr Mat Min Exi Min Mat Slots Evolved 4 | . . . . . 4 Power . | . . . . . . Propulsion . | . . . . . . Utility 4 | . . . . . 4 Weapon . | . . . . . . Parts Attached 35 | 9 6 5 1 6 8 Power 5 | 2 . 1 . 1 1 Engine 4 | 2 . 1 . 1 . Core 1 | . . . . . 1 Reactor . | . . . . . . Propulsion 10 | 4 . 1 . 3 2 Treads 5 | 2 . 1 . . 2 Leg 4 | 2 . . . 2 . Wheel 1 | . . . . 1 . Hover . | . . . . . . Flight . | . . . . . . Utility 12 | 1 5 . 1 2 3 Device 3 | . 2 . . 1 . Storage 6 | 1 3 . 1 . 1 Processor 3 | . . . . 1 2 Hackware . | . . . . . . Protection . | . . . . . . Artifact . | . . . . . . Weapon 8 | 2 1 3 . . 2 Energy Gun 5 | 2 1 . . . 2 Energy Cannon . | . . . . . . Ballistic Gun 2 | . . 2 . . . Ballistic Cannon 1 | . . 1 . . . Launcher . | . . . . . . Special Weapon . | . . . . . . Impact Weapon . | . . . . . . Slashing Weapon . | . . . . . . Piercing Weapon . | . . . . . . Special Melee Weapon . | . . . . . . Unidentified Prototypes . | . . . . . . Parts Lost 8 | . 1 . . 5 2 Power 1 | . . . . 1 . Propulsion 2 | . . . . 2 . Utility 1 | . . . . . 1 Weapon 4 | . 1 . . 2 1 Highest Loss Streak 5 | . 1 . . 5 2 Average Slot Usage (%) 87 | . 94 100 100 71 46 Engine 11 | . 14 14 14 8 . Treads 23 | . 28 28 28 17 4 Device 9 | . 8 14 11 2 9 Storage 14 | . 14 14 16 17 1 Processor 2 | . . . . 2 22 Energy Gun 14 | . 28 21 . . 7 Ballistic Gun 4 | . . 3 14 8 . Ballistic Cannon 4 | . . 3 14 8 . Naked Turns 84 | . . . . 84 . Heaviest Build 86 | 13 26 26 39 39 86 Greatest Support 40 | 40 40 40 40 40 40 Greatest Overweight (x) 3 | 3 . . . . 2 Average Overweight (x) . | . . . . . . Largest Inventory Capacity 24 | 6 10 10 16 16 24 Average Capacity 9 | 5 8 10 11 11 8 Most Carried 16 | 4 8 10 16 16 4 Average Carried 7 | 1 4 9 10 11 3 Final Capacity 24 | 6 10 10 16 4 24 Final Carried 16 | 1 8 10 16 4 3 Class Distribution -------------------- 82% | Mutant 15% | Scavenger-Mutant Dominant Class ---------------- Mutant | -10/Materials Mutant | -10/Mines Scavenger-Mutant | -10/Exiles Mutant | -9/Mines Mutant | -8/Materials Resources | -11 -10 -10 -10 -9 -8 ----------- Run | Scr Mat Min Exi Min Mat Matter Collected 485 | 290 57 50 . 88 . Remotely . | . . . . . . Salvage Created 845 | 124 558 77 . . 86 Parts 53 | 10 29 10 . . 4 Haulers Intercepted 3 | . 2 . . . 1 Recyclers Shooed 1 | 1 . . . . . Parts Field Recycled . | . . . . . . Retrieved Matter . | . . . . . . Parts Self-Destructed . | . . . . . . Prevented . | . . . . . . Kills | -11 -10 -10 -10 -9 -8 ------- Run | Scr Mat Min Exi Min Mat Combat Hostiles Destroyed 17 | . 10 5 . 1 1 Guns 13 | . 7 5 . . 1 Cannons 1 | . . . . 1 . AOE 3 | . 3 . . . . Classes Destroyed 7 | 2 4 . . 1 . Tunneler 2 | 2 . . . . . Hauler 3 | . 2 . . . 1 Recycler 1 | 1 . . . . . Watcher 2 | . 2 . . . . Swarmer 8 | . 3 5 . . . Grunt 8 | . 7 . . . 1 Demolisher 1 | . . . . 1 . Best Kill Streak 5 | 3 5 3 . 1 1 Combat Bots Only 5 | . 5 3 . 1 1 Max Kills in Single Turn 2 | 1 1 2 . 1 1 Gunslinging 1 | . . 1 . . . Exploded 1 | . 1 . . . . Melee . | . . . . . . Uniques/NPCs Destroyed . | . . . . . . Combat | -11 -10 -10 -10 -9 -8 -------- Run | Scr Mat Min Exi Min Mat Damage Taken 1501 | . 361 161 . 575 404 Core 330 | . 40 41 . 164 85 Absorbed by Shields . | . . . . . . Core Remaining (%) 51 | 100 . . . 2 . Volleys Fired 72 | 5 44 7 . 6 10 Largest 2 | 2 2 2 . 2 2 Hottest 113 | 80 80 80 . 55 113 Shots Fired 137 | 10 87 14 . 10 16 Gun 131 | 10 87 14 . 4 16 Cannon 6 | . . . . 6 . Launcher . | . . . . . . Special . | . . . . . . Kinetic 10 | . . . . 10 . Thermal 16 | . . . . . 16 Explosive . | . . . . . . Electromagnetic 111 | 10 87 14 . . . Robot Hit Streak 15 | 5 15 5 . 3 5 Robot Miss Streak 5 | 1 3 1 . 5 2 Penetration Max . | . . . . . . Secondary Targets 3 | . 1 2 . . . Max Gunslinging Chain 1 | . 1 1 . . . Shots Hit Robots 96 | 7 64 10 . 4 11 Core Hits 36 | 4 19 5 . 3 5 Critical Hits . | . . . . . . Critical Kills . | . . . . . . Critical Parts Destroyed . | . . . . . . Melee Attacks . | . . . . . . Impact . | . . . . . . Slashing . | . . . . . . Piercing . | . . . . . . Sneak Attacks . | . . . . . . Combat Hostiles . | . . . . . . Follow-up Attacks . | . . . . . . Damage Inflicted 1502 | 101 1065 97 . 75 164 Guns 1218 | 101 849 97 . 7 164 Cannons 68 | . . . . 68 . Explosions 214 | . 214 . . . . Melee . | . . . . . . Ramming 2 | . 2 . . . . Kinetic 75 | . . . . 75 . Thermal 378 | . 214 . . . 164 Explosive . | . . . . . . Electromagnetic 1047 | 101 849 97 . . . Impact . | . . . . . . Slashing . | . . . . . . Piercing . | . . . . . . Highest Corruption . | . . . . . . Average Corruption . | . . . . . . Corruption Purged . | . . . . . . Overload Shots . | . . . . . . Overflow Damage 3 | . 3 . . . . Projectiles . | . . . . . . Explosions 3 | . 3 . . . . Melee . | . . . . . . Knockbacks 3 | . . . . 3 . Impact . | . . . . . . Kinetic 2 | . . . . 2 . Secondary 1 | . . . . 1 . Self-Inflicted Damage . | . . . . . . Shots . | . . . . . . Rammed 1 | . 1 . . . . Targets Rammed 1 | . 1 . . . . Kicked . | . . . . . . Crushed . | . . . . . . Highest Temperature 322 | 54 322 2 . 34 266 Average Temperature 97 | 26 111 2 . 9 106 Received Heat Transfer 483 | . 132 6 . 120 225 Siege Activations . | . . . . . . Robots Corrupted . | . . . . . . Combat Hostiles . | . . . . . . Parts Fried 7 | . 7 . . . . Impact Corruptions . | . . . . . . Robots Melted . | . . . . . . Combat Hostiles . | . . . . . . Parts Melted 1 | . . . . . 1 Heat Transferred 607 | . 200 . . . 407 Parts Sabotaged . | . . . . . . Parts Stolen . | . . . . . . Parts Stripped . | . . . . . . Power Chain Reactions 3 | . 3 . . . . Missiles Intercepted . | . . . . . . Alert | -11 -10 -10 -10 -9 -8 ------- Run | Scr Mat Min Exi Min Mat Peak Influence 235 | 15 235 137 . 20 73 Average Influence 59 | 5 131 56 . 1 43 Maximum Alert Level 1 | . 1 . . . . Low Security (%) 90 | 100 65 100 . 100 100 Level 1 9 | . 34 . . . . Level 2 . | . . . . . . Level 3 . | . . . . . . Level 4 . | . . . . . . Level 5 . | . . . . . . High Security . | . . . . . . Max Security . | . . . . . . Squads Dispatched 4 | . 2 . . . 2 Investigation 2 | . 1 . . . 1 Extermination . | . . . . . . Reinforcement 1 | . 1 . . . . Assault . | . . . . . . Garrison 1 | . . . . . 1 Intercept . | . . . . . . Construction Impeded . | . . . . . . Haulers Reinforced . | . . . . . . Stealth | -11 -10 -10 -10 -9 -8 --------- Run | Scr Mat Min Exi Min Mat Distress Signals 4 | . 2 . . . 2 Communications Jammed . | . . . . . . Distress Signals . | . . . . . . Times Spotted 58 | . 16 9 . 26 7 Peak Tracking Total 15 | . 5 3 . 15 5 Tactical Retreats 5 | . 1 . . 4 . Traps | -11 -10 -10 -10 -9 -8 ------- Run | Scr Mat Min Exi Min Mat Traps Triggered . | . . . . . . Indirectly . | . . . . . . Trap Hack Attempts . | . . . . . . Triggered . | . . . . . . Disarmed . | . . . . . . Reprogrammed . | . . . . . . Reused . | . . . . . . Traps Extracted . | . . . . . . Installed . | . . . . . . Triggered . | . . . . . . Machines | -11 -10 -10 -10 -9 -8 ---------- Run | Scr Mat Min Exi Min Mat Machines Disabled 1 | . 1 . . . . Max in Single Turn 1 | . 1 . . . . Machines Sabotaged . | . . . . . . Garrisons Compromised . | . . . . . . Overloaded Fab Kills . | . . . . . . Fab Network Shutdowns . | . . . . . . Hacking | -11 -10 -10 -10 -9 -8 --------- Run | Scr Mat Min Exi Min Mat Machines Accessed 4 | . 1 . 1 . 2 Terminals 2 | . 1 . . . 1 Fabricators . | . . . . . . Repair Stations . | . . . . . . Recycling Units . | . . . . . . Scanalyzers . | . . . . . . Garrison Access 1 | . . . . . 1 Total Hacks 11 | . 5 . 1 . 5 Successful 6 | . 3 . 1 . 2 Failed 5 | . 2 . . . 3 Catastrophic 2 | . 1 . . . 1 Database Lockouts . | . . . . . . Manual 7 | . 3 . . . 4 Terminals 9 | . 5 . . . 4 Fabricators . | . . . . . . Repair Stations . | . . . . . . Recycling Units . | . . . . . . Scanalyzers . | . . . . . . Garrison Access 1 | . . . . . 1 Terminal Hacks 3 | . 1 . 1 . 1 Record 1 | . . . 1 . . Transport Status 1 | . . . . . 1 Assault Status 1 | . 1 . . . . Fabricator Hacks . | . . . . . . Repair Station Hacks . | . . . . . . Recycling Unit Hacks . | . . . . . . Scanalyzer . | . . . . . . Garrison Access Hacks . | . . . . . . Unauthorized Hacks 3 | . 2 . . . 1 Terminals 3 | . 2 . . . 1 Track 2 | . 1 . . . 1 Operators 1 | . 1 . . . . Fabricators . | . . . . . . Repair Stations . | . . . . . . Recycling Units . | . . . . . . Scanalyzers . | . . . . . . Garrison Access . | . . . . . . Data Cores Recovered . | . . . . . . Used . | . . . . . . Hacking Detections 3 | . 1 . . . 2 Full Trace Events 1 | . . . . . 1 Feedback Events . | . . . . . . Feedback Blocked . | . . . . . . Robot Schematics Acquired . | . . . . . . Robots Built . | . . . . . . Matter . | . . . . . . Time . | . . . . . . Total Robot Build Rating . | . . . . . . Part Schematics Acquired . | . . . . . . Parts Built . | . . . . . . Matter . | . . . . . . Time . | . . . . . . Total Part Build Rating . | . . . . . . Parts Repaired . | . . . . . . Time . | . . . . . . Parts Recycled . | . . . . . . Recycled Matter . | . . . . . . Retrieved Matter . | . . . . . . Retrieved Components . | . . . . . . Parts Scanalyzed . | . . . . . . Part Schematics Acquired . | . . . . . . Parts Damaged . | . . . . . . Bothacking | -11 -10 -10 -10 -9 -8 ------------ Run | Scr Mat Min Exi Min Mat Used RIF Installer . | . . . . . . Robots Hacked . | . . . . . . Non-combat . | . . . . . . Combat . | . . . . . . Robot Hacks Applied . | . . . . . . Relay Couplers Released . | . . . . . . Robots Rewired . | . . . . . . Allies Hacked . | . . . . . . Hacks Repelled . | . . . . . . Allies | -11 -10 -10 -10 -9 -8 -------- Run | Scr Mat Min Exi Min Mat Total Allies 3 | . . 3 . . . Largest Group 3 | . . 3 . . . Highest-Rated Group 40 | . . 40 . . . Highest-Rated Ally 16 | . . 16 . . . Total Orders . | . . . . . . Ally Attacks 25 | . . 25 . . . Total Damage 229 | . . 229 . . . Kills 4 | . . 4 . . . Allies Corrupted . | . . . . . . Allies Melted . | . . . . . . Intel | -11 -10 -10 -10 -9 -8 ------- Run | Scr Mat Min Exi Min Mat Robot Analysis Total . | . . . . . . Derelict Logs Recovered 3 | . . 1 . 2 . Drone Launches . | . . . . . . Drone Recoveries . | . . . . . . Exploration | -11 -10 -10 -10 -9 -8 ------------- Run | Scr Mat Min Exi Min Mat Turns Passed 2298 | 121 581 629 275 521 171 Spaces Moved 1532 | 82 259 370 170 496 155 Core 431 | 32 . . . 257 142 Treads 1030 | 28 259 370 170 190 13 Legs 65 | 22 . . . 43 . Wheels 6 | . . . . 6 . Hover . | . . . . . . Flight . | . . . . . . Fastest Speed 50 | 50 160 160 160 50 50 Average Speed 128 | 108 160 160 160 98 75 Slowest Speed 200 | 200 160 160 160 160 200 Overloaded Moves . | . . . . . . Propulsion Burnouts . | . . . . . . Robots Hopped . | . . . . . . Cave-ins Triggered . | . . . . . . Exploration Rate (%) 48 | 4 46 80 53 92 18 Regions Visited 5 Branch Regions 3 Pre-discovered Areas 2 | . . 1 1 . . Known Exits Taken . | . . . . . . Unknown Exits Taken 5 | 1 1 1 1 1 . Scrap Searched 2 | . . 1 . 1 . Spaces Dug . | . . . . . . Terrain Destroyed 7 | . 7 . . . . Melee . | . . . . . . Projectile . | . . . . . . AOE 7 | . 7 . . . . Actions | -11 -10 -10 -10 -9 -8 --------- Run | Scr Mat Min Exi Min Mat Total 1718 | 103 340 395 173 519 188 Wait 34 | . 11 5 . 4 14 Move 1527 | 81 258 369 169 495 155 Hop . | . . . . . . Pick Up 22 | 2 11 4 3 1 1 Fast Attach 25 | 8 3 2 . 5 7 Attach 5 | 1 1 1 . 1 1 Detach 6 | 3 2 . . 1 . Swap 5 | . 2 2 1 . . Drop 21 | 3 7 5 . 6 . Fire 72 | 5 44 7 . 6 10 Melee . | . . . . . . Ram . | . . . . . . Kick . | . . . . . . Crush 1 | . 1 . . . . Escape Stasis . | . . . . . . Rewire . | . . . . . . Trap . | . . . . . . Miscellaneous . | . . . . . . Route ------- -11/Scrapyard -10/Materials (discovered 2 exits: [*Mat] / [*Min]) -10/Mines (discovered 3 exits: [*Mat x2] / *Exi) -10/Exiles -9/Mines (discovered 2 exits: *Mat x2) -8/Materials (discovered 1 exit: Sto) History --------- Turn | Location | Event 5 | -11/Scrapyard | Discovered new exit (range 14) 122 | -11/Scrapyard | Entered Materials 307 | -10/Materials | Build established: Mutant 456 | -10/Materials | Discovered new exit (range 15) 590 | -10/Materials | Discovered new exit (range 7) 703 | -10/Materials | Entered Mines 739 | -10/Mines | Assisted by bots powering up and referring to "LRC-V3" 1167 | -10/Mines | Discovered new exit (range 5) 1276 | -10/Mines | Discovered new exit (range 13) 1325 | -10/Mines | Deemed a non-threat by the Exiles lab entrance 1325 | -10/Mines | Discovered new exit (range 5) 1332 | -10/Mines | Entered Exiles 1369 | -10/Exiles | Met 8R-AWN 1398 | -10/Exiles | Met EX-HEX 1470 | -10/Exiles | Met EX-DEC 1496 | -10/Exiles | Learned location of Zion (-7) 1590 | -10/Exiles | Discovered new exit (range 14) 1607 | -10/Exiles | Entered Mines 1615 | -9/Mines | Learned 2 Materials zone layouts 1779 | -9/Mines | Learned Materials non-interactive machine intel 1889 | -9/Mines | Assembled infested the area 1894 | -9/Mines | Assisted by a Guerilla fighting off Assembled 1912 | -9/Mines | Core integrity fell below 50% 1935 | -9/Mines | Core integrity fell below 20% 1967 | -9/Mines | Lost 5 parts (1p2n2w) 2115 | -9/Mines | Discovered new exit (range 10) 2125 | -9/Mines | Discovered new exit (range 7) 2128 | -9/Mines | Entered Materials 2128 | -8/Materials | Evolved 4 slots: Utility x4 2129 | -8/Materials | Identified exit to Storage 2130 | -8/Materials | Loaded intel: 43 non-interactive machine locations 2269 | -8/Materials | Garrison activated, responded to threat 2299 | -8/Materials | Self-destructed Last Messages --------------- 02203_ K-01 Serf cleans the Neutrino Reactor. 02244_ A-02 Transporter destroyed. 02247_ Acquired Lgt. Treads. 02256_ R-06 Scavenger collects Med. Laser. 02258_ Acquired Med. Laser. 02259_ R-06 Scavenger collects Med. Laser. 02262_ Acquired Med. Laser. 02263_ R-06 Scavenger collects Med. Laser. 02269_ G-47 Trooper calls for garrison reinforcements. 02269_ ALERT: Activating Garrison Access M001. 02271_ Targeting Computer destroyed. 02272_ U-05 Engineer lays Concrete. 02272_ R-06 Scavenger sends out distress signal. 02283_ Acquired Lgt. Nuclear Core. 02285_ Imp. Heat Sink melted. 02285_ G-47 Trooper destroyed. 02288_ W-25 Informer sends out distress signal. 02291_ R-06 Scavenger collects Particle Gun. 02296_ R-06 Scavenger collects Lgt. Nuclear Core. 02296_ Pulse Rifle destroyed. Map ----- +----------------------------------------------------+ | g### T !#???????????????? | | ####### ##### +g #???????????????? | | ??????# #???# #########g### """ #?? #???????????? | | ??????# #???# #???????# #?# """ +?? #???????????? | | #######+###?# #???????# #?# """ #? #???????????? | | # #?# #???????# #?# # #???????????? | | + #?# +????#### ########## #???????????? | | # #?###????# [ #???????????? | | # #????????# C #???????????? | | # #????????# """ #???????????? | | # #????????# """ ######??????? | | # #????????# """ a ????? | | + #????????# % ????? | | #####+############## ????? | | ?# #######?????? | | ?# #???????????? | | ?# #???????????? | | #####+## #############r#### ####???????????? | | # #??????# gg% # #??????????????? | | #? #??????# gw #? #??????????????? | | #? #??????# #? #??????????????? | | #?? #??????# #?? #??????????????? | | "" """ #??? #??????# #???#????????"""???? | | "" """ #??? #??????# #????????????"""???? | | "" """ #???? #??????# ! #????????????"""???? | | #?????#??????# @ #??????????????????? | | ########????????????###########????????????"""???? | | ???????????????????????????????????????????"""???? | | ???????????????????????????????????????????"""???? | | ?????????????????????????????????????????????????? | | ?????????????????????????????????????????????????? | | ?????????????????????????????????????????????????? | | ?????????????????????????????????????????????????? | | ?????????????????????????????????????????????????? | | ????????????"""?????"""??????????????????????????? | | ????????????"""????"""""?????????????????????????? | | ????????????"""????"""""?????????????????????????? | | ???????????????????"""""?????????????????????????? | | ????????????????????"""?????????????????"""??????? | | ????????????????????????????????????????"""??????? | | ????????????????????????????????????????"""??????? | | ?????????????????????????????????????????????????? | | ?????????????????????????????????????????????????? | | ??????????????????????????????????????? # | | ??????????????????????????????????????? # """ """ | | ???"""???????????????????????????"""??? # """ """ | | ???"""??????????????????????????"""""?? + """ """ | | ???"""??????????????????????????"""""?? # """ """ | | ????????????????????????????????"""""?? # | | ?????????????????????????????????"""??? ## ####### | +----------------------------------------------------+ Best States ------------- Heat Dissipation 35 Energy Generation 14 Energy Capacity 250 Matter Stores 300 Matter Capacity 300 Sight Range 20 Robot Scan Range 10 Terrain Scan Density 10 Evasion (%) 50 Targeting Accuracy 11 Recoil Reduction 2 Item Schematics ----------------- None Robot Schematics ------------------ None Fabricated ------------ Nothing Alien Tech Used ----------------- None Achievements -------------- None Challenges ------------ None Game ------ Seed ShockHypercooledStripper Manual? 0 Play Time 00:25:45 Cumulative 205.6 hours Start 2020.04.19 @ 21:36:28 End 2020.04.19 @ 22:16:49 Sessions 1 Manual Loads 0 Difficulty Rogue Special Mode None Game No. 153 Rogue 153 Adventurer 0 Explorer 0 Win Type - Total 10 Types 5/0/1/1/0/2/1 Lore% 75 Gallery% 79 Achievement% 72 Wizard Run 0 Options --------- ASCII 0 Keyboard 1 Movement Numpad Keybinds 0 Fullscreen 1 Font 12/Terminus Map View 83x54 Tactical HUD 1 Map Filters NONE Filters LOW_CONTRAST(13,24,33) Steam 1 RUN: 8836a701-2729-4892-beec-56a783196a00